[Event "*** SCC Grand Prix: Titled Tuesday Blitz"]
[Site "Chess.com"]
[Date "2020.08.11"]
[Round "1"]
[White "Azoulas1"]
[Black "mbachez"]
[Result "0-1"]
[WhiteElo "2003"]
[BlackElo "2479"]
[TimeControl "180+1"]
[EndTime "10:04:26 PDT"]
[Termination "mbachez won by resignation"]

1. d4 {[%clk 0:02:59.4]} 1... Nf6 {[%clk 0:02:59.1]} 2. c4 {[%clk 0:02:56.7]}
2... Nc6 {[%clk 0:02:58.5]} 3. Nf3 {[%clk 0:02:51]} 3... e6 {[%clk 0:02:58.4]}
4. a3 {[%clk 0:02:49]} 4... d6 {[%clk 0:02:58.1]} 5. Nc3 {[%clk 0:02:47.1]} 5...
g6 {[%clk 0:02:58.3]} 6. e4 {[%clk 0:02:45]} 6... Bg7 {[%clk 0:02:58.4]} 7. Be2
{[%clk 0:02:39.1]} 7... O-O {[%clk 0:02:58.3]} 8. O-O {[%clk 0:02:37.6]} 8... e5
{[%clk 0:02:58.5]} 9. d5 {[%clk 0:02:35.7]} 9... Nd4 {[%clk 0:02:57.5]} 10. b4
{[%clk 0:02:28.9]} 10... Nxe2+ {[%clk 0:02:55.8]} 11. Qxe2 {[%clk 0:02:25.1]}
11... Nh5 {[%clk 0:02:55.8]} 12. Be3 {[%clk 0:02:22.9]} 12... f5 {[%clk
0:02:54.7]} 13. Rac1 {[%clk 0:02:19.9]} 13... f4 {[%clk 0:02:54.6]} 14. Bd2
{[%clk 0:02:17.6]} 14... Bd7 {[%clk 0:02:54.6]} 15. c5 {[%clk 0:02:15.5]} 15...
Qe8 {[%clk 0:02:53.3]} 16. Ne1 {[%clk 0:02:02]} 16... g5 {[%clk 0:02:48.8]} 17.
f3 {[%clk 0:02:00]} 17... Ng3 {[%clk 0:02:33.4]} 18. Qf2 {[%clk 0:01:51.7]}
18... Nxf1 {[%clk 0:02:33.1]} 19. Qxf1 {[%clk 0:01:49]} 19... dxc5 {[%clk
0:02:30.6]} 20. bxc5 {[%clk 0:01:46]} 20... Rf6 {[%clk 0:02:29.9]} 21. Na2
{[%clk 0:01:43.7]} 21... Bf8 {[%clk 0:02:29.4]} 22. Nb4 {[%clk 0:01:32.2]} 22...
Bb5 {[%clk 0:02:26.4]} 23. Qf2 {[%clk 0:01:28.4]} 23... b6 {[%clk 0:02:25.4]}
24. c6 {[%clk 0:01:22.7]} 24... a5 {[%clk 0:02:23.8]} 25. Nbd3 {[%clk
0:01:19.9]} 25... Bxa3 {[%clk 0:02:23.1]} 26. Rb1 {[%clk 0:01:17.7]} 26... Ba6
{[%clk 0:02:20.1]} 27. Nc2 {[%clk 0:01:15.9]} 27... Bxd3 {[%clk 0:02:16.4]} 28.
Nxa3 {[%clk 0:01:14.3]} 28... Bxb1 {[%clk 0:02:16.5]} 29. Nxb1 {[%clk
0:01:12.1]} 29... a4 {[%clk 0:02:16.9]} 30. Na3 {[%clk 0:01:11.2]} 30... Qf8
{[%clk 0:02:15.4]} 31. Nb5 {[%clk 0:01:01.1]} 31... a3 {[%clk 0:02:14]} 32. Qe1
{[%clk 0:01:00.3]} 32... a2 {[%clk 0:02:13.8]} 33. Qa1 {[%clk 0:00:59.5]} 33...
Qc5+ {[%clk 0:02:13.9]} 0-1

[Event "*** SCC Grand Prix: Titled Tuesday Blitz"]
[Site "Chess.com"]
[Date "2020.08.11"]
[Round "1"]
[White "Misticpikachu"]
[Black "Pultis"]
[Result "0-1"]
[WhiteElo "2373"]
[BlackElo "2742"]
[TimeControl "180+1"]
[EndTime "10:04:35 PDT"]
[Termination "Pultis won by resignation"]

1. c4 {[%clk 0:02:59.9]} 1... c5 {[%clk 0:02:57.8]} 2. g3 {[%clk 0:02:59.8]}
2... Nf6 {[%clk 0:02:58.2]} 3. Bg2 {[%clk 0:03:00.5]} 3... d5 {[%clk 0:02:58.9]}
4. Nf3 {[%clk 0:03:01.2]} 4... d4 {[%clk 0:02:57.2]} 5. O-O {[%clk 0:03:00.5]}
5... Nc6 {[%clk 0:02:57.5]} 6. e3 {[%clk 0:03:00]} 6... h6 {[%clk 0:02:56.8]} 7.
exd4 {[%clk 0:03:00.2]} 7... cxd4 {[%clk 0:02:57.7]} 8. d3 {[%clk 0:02:58.6]}
8... Nd7 {[%clk 0:02:54.7]} 9. Re1 {[%clk 0:02:52.5]} 9... a5 {[%clk 0:02:51.7]}
10. Nbd2 {[%clk 0:02:40.6]} 10... e5 {[%clk 0:02:51.1]} 11. Nxe5 {[%clk
0:02:30.2]} 11... Ncxe5 {[%clk 0:02:50.8]} 12. f4 {[%clk 0:02:30.9]} 12... Bb4
{[%clk 0:02:47.1]} 13. a3 {[%clk 0:02:26.4]} 13... O-O {[%clk 0:02:38.1]} 14.
fxe5 {[%clk 0:02:19.8]} 14... Bxd2 {[%clk 0:02:38.6]} 15. Bxd2 {[%clk
0:02:17.1]} 15... Nc5 {[%clk 0:02:39.5]} 16. Bf4 {[%clk 0:01:38.2]} 16... Bf5
{[%clk 0:02:36.2]} 17. Bf1 {[%clk 0:01:32.4]} 17... Qb6 {[%clk 0:02:35.2]} 18.
Rb1 {[%clk 0:01:28.5]} 18... Qg6 {[%clk 0:02:34.2]} 19. e6 {[%clk 0:01:22.3]}
19... fxe6 {[%clk 0:02:32.7]} 20. Bd6 {[%clk 0:01:17]} 20... Rfc8 {[%clk
0:02:15.7]} 21. Bxc5 {[%clk 0:01:02.5]} 21... Rxc5 {[%clk 0:02:16.6]} 22. Qf3
{[%clk 0:01:01.1]} 22... Rf8 {[%clk 0:02:10.7]} 23. b4 {[%clk 0:00:54]} 23...
axb4 {[%clk 0:02:09.9]} 24. axb4 {[%clk 0:00:54.9]} 24... Bg4 {[%clk 0:02:08.7]}
25. Qxf8+ {[%clk 0:00:51.5]} 25... Kxf8 {[%clk 0:02:08.8]} 26. bxc5 {[%clk
0:00:52.4]} 26... Bf3 {[%clk 0:02:09.3]} 27. Bg2 {[%clk 0:00:42]} 27... Bxg2
{[%clk 0:02:06.6]} 28. Kxg2 {[%clk 0:00:42.9]} 28... Qxd3 {[%clk 0:02:06.6]} 29.
Rf1+ {[%clk 0:00:43.3]} 29... Kg8 {[%clk 0:02:06.3]} 30. Rxb7 {[%clk 0:00:43.6]}
30... Qe4+ {[%clk 0:02:05.2]} 0-1

[Event "*** SCC Grand Prix: Titled Tuesday Blitz"]
[Site "Chess.com"]
[Date "2020.08.11"]
[Round "1"]
[White "Kobalia"]
[Black "Sadykov_Ramil"]
[Result "1-0"]
[WhiteElo "2791"]
[BlackElo "2397"]
[TimeControl "180+1"]
[EndTime "10:04:38 PDT"]
[Termination "Kobalia won by resignation"]

1. e4 {[%clk 0:03:00.1]} 1... c5 {[%clk 0:02:58.4]} 2. Nf3 {[%clk 0:02:59.4]}
2... d6 {[%clk 0:02:57.5]} 3. Bb5+ {[%clk 0:02:58.8]} 3... Nd7 {[%clk 0:02:57]}
4. O-O {[%clk 0:02:58.3]} 4... a6 {[%clk 0:02:54.7]} 5. Bd3 {[%clk 0:02:58.1]}
5... g6 {[%clk 0:02:53.8]} 6. c3 {[%clk 0:02:57.7]} 6... Bg7 {[%clk 0:02:49.9]}
7. Bc2 {[%clk 0:02:58]} 7... Ngf6 {[%clk 0:02:44.2]} 8. d4 {[%clk 0:02:58.2]}
8... b5 {[%clk 0:02:37.5]} 9. e5 {[%clk 0:02:52.8]} 9... dxe5 {[%clk 0:02:32.9]}
10. dxe5 {[%clk 0:02:52.4]} 10... Ng4 {[%clk 0:02:27.4]} 11. e6 {[%clk
0:02:50.9]} 11... fxe6 {[%clk 0:02:16.6]} 12. Ng5 {[%clk 0:02:50]} 12... Nde5
{[%clk 0:01:40.8]} 13. Qxd8+ {[%clk 0:02:46.3]} 13... Kxd8 {[%clk 0:01:41.7]}
14. h3 {[%clk 0:02:42.5]} 14... h6 {[%clk 0:01:16.4]} 15. Ne4 {[%clk 0:02:40.6]}
15... Nf6 {[%clk 0:01:08.2]} 16. Nxc5 {[%clk 0:02:41]} 16... g5 {[%clk
0:00:56.1]} 17. Re1 {[%clk 0:02:40.5]} 17... Nd5 {[%clk 0:00:50.4]} 18. Nd2
{[%clk 0:02:31.1]} 18... Kc7 {[%clk 0:00:41.5]} 19. Ndb3 {[%clk 0:02:30]} 19...
Rf8 {[%clk 0:00:27.8]} 20. a4 {[%clk 0:02:22.5]} 20... bxa4 {[%clk 0:00:24]} 21.
Rxa4 {[%clk 0:02:20.8]} 21... Rb8 {[%clk 0:00:15.5]} 22. Nxa6+ {[%clk
0:02:17.7]} 22... Bxa6 {[%clk 0:00:16.4]} 23. Rxa6 {[%clk 0:02:18]} 23... Rb6
{[%clk 0:00:14.5]} 24. Ra7+ {[%clk 0:02:17.1]} 24... Rb7 {[%clk 0:00:14.5]} 25.
Rxb7+ {[%clk 0:02:16.6]} 25... Kxb7 {[%clk 0:00:15.4]} 26. Nc5+ {[%clk
0:02:16.9]} 1-0

[Event "*** SCC Grand Prix: Titled Tuesday Blitz"]
[Site "Chess.com"]
[Date "2020.08.11"]
[Round "1"]
[White "GukeshDommaraju"]
[Black "ZverevLev"]
[Result "1-0"]
[WhiteElo "2638"]
[BlackElo "2293"]
[TimeControl "180+1"]
[EndTime "10:04:40 PDT"]
[Termination "GukeshDommaraju won by resignation"]

1. e4 {[%clk 0:03:00.3]} 1... e5 {[%clk 0:02:58.3]} 2. Nf3 {[%clk 0:02:59.6]}
2... Nc6 {[%clk 0:02:58.5]} 3. Bb5 {[%clk 0:02:59.5]} 3... a6 {[%clk 0:02:55.8]}
4. Ba4 {[%clk 0:02:59.2]} 4... Nf6 {[%clk 0:02:55.4]} 5. O-O {[%clk 0:02:58.7]}
5... Be7 {[%clk 0:02:54.5]} 6. Re1 {[%clk 0:02:57.6]} 6... b5 {[%clk 0:02:52.2]}
7. Bb3 {[%clk 0:02:57.3]} 7... d6 {[%clk 0:02:53.1]} 8. c3 {[%clk 0:02:55.4]}
8... O-O {[%clk 0:02:52]} 9. h3 {[%clk 0:02:55.5]} 9... Na5 {[%clk 0:02:50.4]}
10. Bc2 {[%clk 0:02:54.5]} 10... c5 {[%clk 0:02:50.8]} 11. d4 {[%clk 0:02:54.5]}
11... cxd4 {[%clk 0:02:50.6]} 12. cxd4 {[%clk 0:02:54.2]} 12... Bb7 {[%clk
0:02:51]} 13. Nbd2 {[%clk 0:02:50.3]} 13... Rc8 {[%clk 0:02:40.7]} 14. d5 {[%clk
0:02:47.3]} 14... Nc4 {[%clk 0:02:39.1]} 15. Nf1 {[%clk 0:02:44.4]} 15... Nb6
{[%clk 0:02:37.5]} 16. Bd3 {[%clk 0:02:41.3]} 16... Nfd7 {[%clk 0:02:33]} 17.
Ng3 {[%clk 0:02:40.8]} 17... g6 {[%clk 0:02:31.7]} 18. b3 {[%clk 0:02:38.6]}
18... Re8 {[%clk 0:02:31]} 19. Be3 {[%clk 0:02:38]} 19... Bf8 {[%clk 0:02:30.5]}
20. Qd2 {[%clk 0:02:37]} 20... Bg7 {[%clk 0:02:29.8]} 21. Rac1 {[%clk
0:02:36.4]} 21... Rf8 {[%clk 0:02:28.1]} 22. Rxc8 {[%clk 0:02:28.2]} 22... Qxc8
{[%clk 0:02:28.3]} 23. Rc1 {[%clk 0:02:28.3]} 23... Qd8 {[%clk 0:02:28]} 24. Qb4
{[%clk 0:02:27.6]} 24... Nb8 {[%clk 0:02:22.2]} 25. a4 {[%clk 0:02:22.5]} 25...
f5 {[%clk 0:02:14.4]} 26. a5 {[%clk 0:02:00.3]} 26... Nc8 {[%clk 0:02:07.2]} 27.
exf5 {[%clk 0:01:57.9]} 27... Bxd5 {[%clk 0:02:03.6]} 28. fxg6 {[%clk
0:01:49.3]} 28... hxg6 {[%clk 0:01:48]} 29. Bxg6 {[%clk 0:01:48.7]} 29... Nc6
{[%clk 0:01:43.5]} 30. Qg4 {[%clk 0:01:38.2]} 30... Qf6 {[%clk 0:01:27.5]} 31.
Nh5 {[%clk 0:01:34.8]} 31... Qe6 {[%clk 0:01:25.1]} 32. Bh7+ {[%clk 0:01:34.3]}
32... Kf7 {[%clk 0:01:19.9]} 33. Ng5+ {[%clk 0:01:33.2]} 1-0

[Event "*** SCC Grand Prix: Titled Tuesday Blitz"]
[Site "Chess.com"]
[Date "2020.08.11"]
[Round "1"]
[White "icychess54"]
[Black "Timerkhanov"]
[Result "0-1"]
[WhiteElo "2223"]
[BlackElo "2586"]
[TimeControl "180+1"]
[EndTime "10:04:42 PDT"]
[Termination "Timerkhanov won by checkmate"]

1. c4 {[%clk 0:02:59.5]} 1... c6 {[%clk 0:02:58]} 2. Nf3 {[%clk 0:02:57.7]} 2...
Nf6 {[%clk 0:02:57.2]} 3. e3 {[%clk 0:02:58.2]} 3... d5 {[%clk 0:02:57.2]} 4.
Nc3 {[%clk 0:02:57]} 4... Bf5 {[%clk 0:02:56.7]} 5. b3 {[%clk 0:02:55.3]} 5...
e6 {[%clk 0:02:56.5]} 6. Bb2 {[%clk 0:02:55.3]} 6... Nbd7 {[%clk 0:02:56.6]} 7.
Be2 {[%clk 0:02:55.4]} 7... Bd6 {[%clk 0:02:56.8]} 8. O-O {[%clk 0:02:54.6]}
8... O-O {[%clk 0:02:57]} 9. cxd5 {[%clk 0:02:51.9]} 9... exd5 {[%clk
0:02:52.6]} 10. Nd4 {[%clk 0:02:51.3]} 10... Bg6 {[%clk 0:02:52.5]} 11. f4
{[%clk 0:02:50.8]} 11... Nc5 {[%clk 0:01:57.2]} 12. f5 {[%clk 0:02:33.6]} 12...
Nfe4 {[%clk 0:01:57]} 13. Nxe4 {[%clk 0:01:47.4]} 13... Nxe4 {[%clk 0:01:54.2]}
14. fxg6 {[%clk 0:01:21.5]} 14... Bxh2+ {[%clk 0:01:52.4]} 15. Kxh2 {[%clk
0:01:21.3]} 15... Qh4+ {[%clk 0:01:52.5]} 16. Kg1 {[%clk 0:01:21.4]} 16... Ng3
{[%clk 0:01:52.8]} 17. Rxf7 {[%clk 0:00:39.8]} 17... hxg6 {[%clk 0:01:49.4]} 18.
Rxg7+ {[%clk 0:00:31.6]} 18... Kh8 {[%clk 0:01:49.2]} 19. Nf3 {[%clk 0:00:28.8]}
19... Qh1+ {[%clk 0:01:45.5]} 20. Kf2 {[%clk 0:00:25.5]} 20... Ne4# {[%clk
0:01:44.9]} 0-1

[Event "*** SCC Grand Prix: Titled Tuesday Blitz"]
[Site "Chess.com"]
[Date "2020.08.11"]
[Round "1"]
[White "BikingBrian"]
[Black "pedromartinez91"]
[Result "0-1"]
[WhiteElo "2200"]
[BlackElo "2561"]
[TimeControl "180+1"]
[EndTime "10:04:43 PDT"]
[Termination "pedromartinez91 won by resignation"]

1. d4 {[%clk 0:03:00.6]} 1... d5 {[%clk 0:02:48.2]} 2. Bf4 {[%clk 0:03:00.1]}
2... c6 {[%clk 0:02:31]} 3. e3 {[%clk 0:02:59]} 3... Nf6 {[%clk 0:02:28.6]} 4.
c4 {[%clk 0:02:58.7]} 4... g6 {[%clk 0:02:28.4]} 5. Nc3 {[%clk 0:02:58.2]} 5...
Bg7 {[%clk 0:02:28.2]} 6. h3 {[%clk 0:02:53.4]} 6... O-O {[%clk 0:02:27.4]} 7.
Nf3 {[%clk 0:02:53.3]} 7... Ne4 {[%clk 0:02:23.5]} 8. Bd3 {[%clk 0:02:50.1]}
8... Nxc3 {[%clk 0:02:20.8]} 9. bxc3 {[%clk 0:02:47.7]} 9... Be6 {[%clk
0:02:12.9]} 10. cxd5 {[%clk 0:02:46.3]} 10... cxd5 {[%clk 0:02:13.8]} 11. O-O
{[%clk 0:02:46.2]} 11... Nc6 {[%clk 0:02:14.3]} 12. e4 {[%clk 0:02:35.6]} 12...
dxe4 {[%clk 0:02:10.6]} 13. Bxe4 {[%clk 0:02:36.5]} 13... Bd5 {[%clk 0:02:10.6]}
14. Bd3 {[%clk 0:02:27.7]} 14... Rc8 {[%clk 0:02:05.7]} 15. Be3 {[%clk
0:02:18.4]} 15... Qa5 {[%clk 0:02:01.1]} 16. Rc1 {[%clk 0:02:01.7]} 16... Qa3
{[%clk 0:01:48.3]} 17. c4 {[%clk 0:01:35.5]} 17... Bxf3 {[%clk 0:01:46.5]} 18.
gxf3 {[%clk 0:01:33]} 18... Bxd4 {[%clk 0:01:33.3]} 19. Bh6 {[%clk 0:01:14.7]}
19... Bg7 {[%clk 0:01:29.9]} 20. Bxg7 {[%clk 0:01:12.9]} 20... Kxg7 {[%clk
0:01:30.8]} 21. Re1 {[%clk 0:01:01.1]} 21... Rfd8 {[%clk 0:01:29.5]} 22. Qc2
{[%clk 0:01:01.1]} 22... Qxd3 {[%clk 0:01:28.4]} 23. Qxd3 {[%clk 0:01:01]} 23...
Rxd3 {[%clk 0:01:28.7]} 0-1

[Event "*** SCC Grand Prix: Titled Tuesday Blitz"]
[Site "Chess.com"]
[Date "2020.08.11"]
[Round "1"]
[White "crossingthestreet"]
[Black "Alexander_Zubov"]
[Result "0-1"]
[WhiteElo "2406"]
[BlackElo "2828"]
[TimeControl "180+1"]
[EndTime "10:04:54 PDT"]
[Termination "Alexander_Zubov won on time"]

1. c4 {[%clk 0:03:00]} 1... Nf6 {[%clk 0:02:59.8]} 2. Nc3 {[%clk 0:02:59.6]}
2... d5 {[%clk 0:03:00.4]} 3. cxd5 {[%clk 0:02:59.1]} 3... Nxd5 {[%clk
0:03:01.3]} 4. Nf3 {[%clk 0:02:59.4]} 4... g6 {[%clk 0:03:01]} 5. h4 {[%clk
0:02:59.3]} 5... Nc6 {[%clk 0:02:58.7]} 6. e4 {[%clk 0:02:45.3]} 6... Ndb4
{[%clk 0:02:53.6]} 7. d4 {[%clk 0:02:18.3]} 7... Nxd4 {[%clk 0:02:50.9]} 8. Qa4+
{[%clk 0:02:00.6]} 8... Bd7 {[%clk 0:02:49.2]} 9. Bb5 {[%clk 0:01:50.9]} 9...
Nbc2+ {[%clk 0:02:33.2]} 10. Kf1 {[%clk 0:00:59.7]} 10... Nxa1 {[%clk
0:02:26.2]} 11. Nxd4 {[%clk 0:00:46.4]} 11... c6 {[%clk 0:02:25.8]} 12. Be2
{[%clk 0:00:32.7]} 12... c5 {[%clk 0:02:25.5]} 13. Ndb5 {[%clk 0:00:18.3]} 13...
a6 {[%clk 0:02:23.3]} 14. Nd5 {[%clk 0:00:16.6]} 14... Rc8 {[%clk 0:02:14.7]}
15. Nbc7+ {[%clk 0:00:10.6]} 15... Rxc7 {[%clk 0:02:14.2]} 16. Nxc7+ {[%clk
0:00:11.5]} 16... Qxc7 {[%clk 0:02:14.6]} 17. Qc4 {[%clk 0:00:11.6]} 17... Bg7
{[%clk 0:02:07.6]} 18. h5 {[%clk 0:00:10.5]} 18... Bb5 {[%clk 0:02:05.9]} 19.
Qd5 {[%clk 0:00:07.9]} 19... Qd6 {[%clk 0:02:01.7]} 20. Qxd6 {[%clk 0:00:02.2]}
20... exd6 {[%clk 0:02:00.8]} 21. h6 {[%clk 0:00:01.9]} 21... Bd4 {[%clk
0:02:00.6]} 0-1

[Event "*** SCC Grand Prix: Titled Tuesday Blitz"]
[Site "Chess.com"]
[Date "2020.08.11"]
[Round "1"]
[White "FMalexhdez"]
[Black "Aemulus20"]
[Result "0-1"]
[WhiteElo "2181"]
[BlackElo "2551"]
[TimeControl "180+1"]
[EndTime "10:04:54 PDT"]
[Termination "Aemulus20 won on time"]

1. e4 {[%clk 0:03:00.3]} 1... c5 {[%clk 0:02:58.6]} 2. Nf3 {[%clk 0:03:00.6]}
2... g6 {[%clk 0:02:58.8]} 3. d4 {[%clk 0:03:01]} 3... cxd4 {[%clk 0:02:59.7]}
4. Nxd4 {[%clk 0:03:01.3]} 4... Bg7 {[%clk 0:03:00.1]} 5. Nc3 {[%clk 0:03:01.7]}
5... Nc6 {[%clk 0:03:00.7]} 6. Nb3 {[%clk 0:03:01.6]} 6... Nf6 {[%clk
0:03:01.2]} 7. Be2 {[%clk 0:03:02]} 7... d6 {[%clk 0:03:01.2]} 8. O-O {[%clk
0:03:02.3]} 8... O-O {[%clk 0:03:01.8]} 9. Re1 {[%clk 0:03:02.6]} 9... a5 {[%clk
0:03:02.1]} 10. a4 {[%clk 0:03:00.8]} 10... Nb4 {[%clk 0:03:02.5]} 11. Bf1
{[%clk 0:02:59.4]} 11... Be6 {[%clk 0:03:02]} 12. Bg5 {[%clk 0:02:54.7]} 12...
Rc8 {[%clk 0:03:01.9]} 13. Nd4 {[%clk 0:02:45.4]} 13... Bc4 {[%clk 0:03:01]} 14.
Ndb5 {[%clk 0:02:38.2]} 14... Bxf1 {[%clk 0:02:53.8]} 15. Kxf1 {[%clk 0:02:38]}
15... Rc5 {[%clk 0:02:39.7]} 16. Be3 {[%clk 0:02:34.3]} 16... Rc4 {[%clk
0:02:38.7]} 17. f3 {[%clk 0:02:24.4]} 17... Nd7 {[%clk 0:02:19.5]} 18. Qe2
{[%clk 0:02:20.1]} 18... Rc6 {[%clk 0:02:05.9]} 19. Bd4 {[%clk 0:02:01.3]} 19...
Ne5 {[%clk 0:01:54.6]} 0-1

[Event "*** SCC Grand Prix: Titled Tuesday Blitz"]
[Site "Chess.com"]
[Date "2020.08.11"]
[Round "1"]
[White "bratkoo"]
[Black "TimKett"]
[Result "1-0"]
[WhiteElo "2565"]
[BlackElo "2203"]
[TimeControl "180+1"]
[EndTime "10:05:00 PDT"]
[Termination "bratkoo won by resignation"]

1. e4 {[%clk 0:03:00.9]} 1... e5 {[%clk 0:02:59.7]} 2. Nf3 {[%clk 0:02:59.9]}
2... Nc6 {[%clk 0:02:59.7]} 3. Bc4 {[%clk 0:02:58.8]} 3... Nf6 {[%clk
0:02:58.9]} 4. d3 {[%clk 0:02:57.7]} 4... Bc5 {[%clk 0:02:57.6]} 5. O-O {[%clk
0:02:55.9]} 5... d6 {[%clk 0:02:56.3]} 6. Re1 {[%clk 0:02:52.5]} 6... a6 {[%clk
0:02:55.4]} 7. c3 {[%clk 0:02:51.2]} 7... Ba7 {[%clk 0:02:54.9]} 8. Bb3 {[%clk
0:02:51.1]} 8... O-O {[%clk 0:02:53.4]} 9. Nbd2 {[%clk 0:02:50.8]} 9... Kh8
{[%clk 0:02:52.5]} 10. Nf1 {[%clk 0:02:48.1]} 10... Ne8 {[%clk 0:02:52.4]} 11.
Ng3 {[%clk 0:02:47.6]} 11... g6 {[%clk 0:02:52.1]} 12. d4 {[%clk 0:02:47.4]}
12... Ng7 {[%clk 0:02:48.8]} 13. Bg5 {[%clk 0:02:44.2]} 13... f6 {[%clk
0:02:47.9]} 14. Bh6 {[%clk 0:02:43.6]} 14... Qe7 {[%clk 0:02:43.2]} 15. h3
{[%clk 0:02:41.9]} 15... Nd8 {[%clk 0:02:27]} 16. Qd2 {[%clk 0:02:32.4]} 16...
Nf7 {[%clk 0:02:24.7]} 17. Be3 {[%clk 0:02:30.7]} 17... Be6 {[%clk 0:02:18.7]}
18. Bc2 {[%clk 0:02:14.8]} 18... Rae8 {[%clk 0:01:34.9]} 19. Rad1 {[%clk
0:02:13]} 19... f5 {[%clk 0:01:12.8]} 20. exf5 {[%clk 0:02:11]} 20... gxf5
{[%clk 0:01:12.1]} 21. dxe5 {[%clk 0:02:10.9]} 21... Bxe3 {[%clk 0:01:09.8]} 22.
Qxe3 {[%clk 0:02:08.4]} 22... Nxe5 {[%clk 0:00:56.1]} 23. Nxe5 {[%clk
0:02:07.1]} 23... f4 {[%clk 0:00:54]} 24. Qd3 {[%clk 0:02:06]} 24... Nf5 {[%clk
0:00:46]} 25. Nxf5 {[%clk 0:01:50.8]} 25... Bxf5 {[%clk 0:00:43]} 26. Ng6+
{[%clk 0:01:47.9]} 26... Bxg6 {[%clk 0:00:34.2]} 27. Rxe7 {[%clk 0:01:47.2]}
27... Bxd3 {[%clk 0:00:28.1]} 28. Rxe8 {[%clk 0:01:47.3]} 28... Rxe8 {[%clk
0:00:27.6]} 29. Bxd3 {[%clk 0:01:47]} 1-0

[Event "*** SCC Grand Prix: Titled Tuesday Blitz"]
[Site "Chess.com"]
[Date "2020.08.11"]
[Round "1"]
[White "Guenplen"]
[Black "chessablanca"]
[Result "1-0"]
[WhiteElo "2884"]
[BlackElo "2427"]
[TimeControl "180+1"]
[EndTime "10:05:05 PDT"]
[Termination "Guenplen won by resignation"]

1. d4 {[%clk 0:03:00.9]} 1... Nf6 {[%clk 0:02:59.8]} 2. Bf4 {[%clk 0:03:00.4]}
2... e6 {[%clk 0:02:59]} 3. e3 {[%clk 0:03:00]} 3... c5 {[%clk 0:02:58.7]} 4. c3
{[%clk 0:02:59.9]} 4... Nc6 {[%clk 0:02:58.2]} 5. Nd2 {[%clk 0:02:59.1]} 5... d5
{[%clk 0:02:56.7]} 6. Ngf3 {[%clk 0:02:59.2]} 6... Be7 {[%clk 0:02:49.3]} 7. Bd3
{[%clk 0:02:55.5]} 7... O-O {[%clk 0:02:49.1]} 8. h4 {[%clk 0:02:50.4]} 8... b6
{[%clk 0:02:44.5]} 9. h5 {[%clk 0:02:49.5]} 9... Bb7 {[%clk 0:02:40.7]} 10. Qe2
{[%clk 0:02:25.2]} 10... Re8 {[%clk 0:02:35.4]} 11. Rd1 {[%clk 0:02:16.5]} 11...
Bd6 {[%clk 0:01:59.3]} 12. Ne5 {[%clk 0:02:15.8]} 12... Rc8 {[%clk 0:01:39.9]}
13. Qf3 {[%clk 0:02:05.9]} 13... Ne7 {[%clk 0:01:37.5]} 14. g4 {[%clk
0:02:00.5]} 14... Qc7 {[%clk 0:01:05.8]} 15. g5 {[%clk 0:01:57.1]} 15... Nd7
{[%clk 0:01:05.1]} 16. g6 {[%clk 0:01:32.6]} 16... Nxe5 {[%clk 0:00:48.6]} 17.
dxe5 {[%clk 0:01:29.6]} 17... d4 {[%clk 0:00:43.4]} 18. gxf7+ {[%clk 0:01:23.6]}
18... Kxf7 {[%clk 0:00:40.7]} 19. Ne4 {[%clk 0:01:21.4]} 1-0

[Event "*** SCC Grand Prix: Titled Tuesday Blitz"]
[Site "Chess.com"]
[Date "2020.08.11"]
[Round "1"]
[White "PattyCastillo"]
[Black "Nafania1"]
[Result "0-1"]
[WhiteElo "1975"]
[BlackElo "2475"]
[TimeControl "180+1"]
[EndTime "10:05:09 PDT"]
[Termination "Nafania1 won by resignation"]

1. d4 {[%clk 0:03:00.5]} 1... Nf6 {[%clk 0:02:59.6]} 2. Nf3 {[%clk 0:02:59.9]}
2... e6 {[%clk 0:02:59.4]} 3. e3 {[%clk 0:02:59.7]} 3... b6 {[%clk 0:02:59]} 4.
Bd3 {[%clk 0:02:59]} 4... Bb7 {[%clk 0:02:59.3]} 5. b3 {[%clk 0:02:58.8]} 5...
d5 {[%clk 0:02:57.8]} 6. Bb2 {[%clk 0:02:58.6]} 6... Bd6 {[%clk 0:02:57.5]} 7.
O-O {[%clk 0:02:57.9]} 7... Qe7 {[%clk 0:02:55.3]} 8. Nbd2 {[%clk 0:02:45.5]}
8... Nbd7 {[%clk 0:02:51]} 9. a4 {[%clk 0:02:42.6]} 9... a6 {[%clk 0:02:50.3]}
10. Ne5 {[%clk 0:02:25.4]} 10... O-O {[%clk 0:02:45.2]} 11. f4 {[%clk
0:02:24.2]} 11... Ne4 {[%clk 0:02:41.5]} 12. Nxe4 {[%clk 0:01:52.7]} 12... dxe4
{[%clk 0:02:41.3]} 13. Bc4 {[%clk 0:01:53.2]} 13... Nf6 {[%clk 0:02:28.7]} 14.
Qe2 {[%clk 0:01:45.7]} 14... Nd5 {[%clk 0:02:26.2]} 15. Rad1 {[%clk 0:01:42.5]}
15... Bb4 {[%clk 0:02:16.6]} 16. Bxd5 {[%clk 0:01:32.1]} 16... exd5 {[%clk
0:02:14]} 17. c3 {[%clk 0:01:25.2]} 17... Bd6 {[%clk 0:02:11.8]} 18. c4 {[%clk
0:01:24.8]} 18... f6 {[%clk 0:02:05.4]} 19. Ng4 {[%clk 0:01:18.6]} 19... Bb4
{[%clk 0:02:02.7]} 20. Rc1 {[%clk 0:01:08.4]} 20... a5 {[%clk 0:01:54.8]} 21.
cxd5 {[%clk 0:01:06.6]} 21... Bxd5 {[%clk 0:01:54.4]} 22. Qc2 {[%clk 0:00:57.3]}
22... Rac8 {[%clk 0:01:54.4]} 23. Nf2 {[%clk 0:00:55.6]} 23... f5 {[%clk
0:01:53.1]} 24. Nd1 {[%clk 0:00:53.4]} 24... Qe6 {[%clk 0:01:49.7]} 25. Nc3
{[%clk 0:00:42.2]} 25... Bxb3 {[%clk 0:01:49.4]} 26. Qe2 {[%clk 0:00:38.8]}
26... Bc4 {[%clk 0:01:48.5]} 27. Qf2 {[%clk 0:00:36]} 27... Bxf1 {[%clk
0:01:48.4]} 28. Rxf1 {[%clk 0:00:35.1]} 28... Qb3 {[%clk 0:01:47.7]} 29. Nb5
{[%clk 0:00:27]} 29... Qxa4 {[%clk 0:01:45.4]} 30. Na7 {[%clk 0:00:23.5]} 30...
Ra8 {[%clk 0:01:44.7]} 0-1